Workbook

Sheet Buy vs. Lease Car
B2: BUY vs. LEASE
B4: MAKE & MODEL | C4: [MAKE] [MODEL]
B6: LEASE | E6: BUY
B8: Suggested retail price | C8: $12,000.00 | E8: Suggested retail price | F8: =IF(C8,C8,"") -> $12,000.00
B9: Tax, title, etc. | C9: $250.00 | E9: Tax, title, etc. | F9: =IF(C9,C9,"") -> $250.00
B10: Refundable security deposit | C10: $150.00
B11: First month's payment | C11: $200.00
B12: Capital cost reduction payment | C12: $100.00 | E12: Down payment | F12: $2,000.00
B14: Last month payment in advance? | C14: Yes
B15: Payment (if yes) | C15: =IF(ISBLANK(C14),"",IF(C14="Yes",C11,0)) -> $200.00
B16: Selling price at end of lease | C16: $7,500.00 | E16: Resale value | F16: =IF(C16,C16,"") -> $7,500.00
B17: Monthly lease payment | C17: $225.00 | E17: Monthly loan payment | F17: =IF(AND(OR(F8>0,F19),F18*12),PMT(F19/12,F18*12,-(F8-F12)),"") -> $188.71
B18: Lease term (years) | C18: 5 | E18: Term of loan (years) | F18: =IF(C18,C18,"") -> 5
B19: Discount for present value | C19: 5.00% | E19: Loan rate | F19: 5.00%
B21: Future value of last payment | C21: =IF(OR(OR(C19>0,C18*12),C15),(1+C19/12)^(C18*12)*C15,"") -> $256.67 | E21: Present value of resale | F21: =IF(OR(OR(C19>0,C18*12),C16),((1+C19/12)^(-C18*12))*C16,"") -> $5,844.04
B23: Initial costs | C23: =IF(SUM(C9:C12,C15),SUM(C9:C12,C15),"") -> $900.00 | E23: Initial costs | F23: =IF(OR(SUM(F9)>0,F12),F9+F12,"") -> $2,250.00
B24: Financing costs | C24: =IF(AND(C17>0,C19),PV(C19/12,C18*12-IF(C15,1,0),-C17),"") -> $11,747.59 | E24: Financing costs | F24: =IF(OR(OR(F17>0,C19),F18*12),PV(C19/12,F18*12,-F17),"") -> $10,000.00
B25: Present value of refund | C25: =IF(OR(OR(C19>0,C18*12),C10),((1+C19/12)^(-C18*12))*-C10,"") -> -$116.88
B26: Present value of total costs | C26: =IF(SUM(C23:C25),SUM(C23:C25),"") -> $12,530.71 | E26: Present value of total costs | F26: =IF(OR(OR(SUM(F23)>0,F24),F21),F23+F24-F21,"") -> $6,405.96
E28: DIFFERENCE | F28: =IF(OR(SUM(F26)>0,C26),+F26-C26,"") -> -$6,124.75
E29: Note: Positive value favors leasing.
B31: TAXATION
C33: Tax bracket | F33: 25.00%
C34: Business use percentage | F34: 6.50%
C35: Sales tax percentage | F35: 9.50%
B37: TAXATION | C37: LEASE | E37: TAXATION | F37: BUY
B39: Title | C39: $150.00 | E39: Title | F39: =IF(C39,C39,"") -> $150.00
B40: Fees | C40: $150.00 | E40: Fees | F40: =IF(C40,C40,"") -> $150.00
B41: Sales tax | C41: =IF(OR(F35>0,C8),F35*C8,"") -> $1,140.00 | E41: Sales tax | F41: =IF(SUM(C41),C41,"") -> $1,140.00
B42: Potential financing deduction | C42: =IF(OR(C17>0,C18),C17*C18*12,"") -> $13,500.00 | E42: Interest deduction | F42: =IF(OR(OR(OR(F17>0,F18*12),F8),F12),(F17*F18*12)-(F8-F12),"") -> $1,322.74
B43: Total potential deductions | C43: =IF(SUM(C39:C42),SUM(C39:C42),"") -> $14,940.00 | E43: Total potential deductions | F43: =IF(SUM(F39:F42),SUM(F39:F42),"") -> $2,762.74
B44: Potential tax savings | C44: =IF(OR(OR(F33>0,F34),C43),(1-F33)*F34*C43,"") -> $728.33 | E44: Potential tax savings | F44: =IF(OR(OR(F33>0,F34),F43),(1-F33)*F34*F43,"") -> $134.68
B46: Note: Depreciation deductions may be available that could change the results of this analysis.
